Cogmind - Beta 13 @@@ ROGUE MODE // 2024.04.27 @ 23:02:41 Player: zoefiri Result: Destroyed by as-76366 with Assembled Heavy Rifle Performance ------------- Evolutions (0) 0 Regions Visited (2) 400 Robots Destroyed (14) 70 Value Destroyed (309) 309 Prototype IDs (0) 0 Alien Tech Used (0) 0 Bonus (0) 0 TOTAL SCORE: 779 Bonus ------- None Cogmind --------- Core Integrity 0/250 Matter 49/300 Energy 85/310 System Corruption 1% Temperature Cool (0) Movement Walking (190) Ox1 Location -10/Mines Parts ------- > --- POWER (1) -------- Fission Core > --- PROPULSION (2) --- Aluminum Leg Aluminum Leg > --- UTILITY (2) ------ Medium Storage Unit > --- WEAPON (2) ------- Particle Gun > --- INVENTORY (10) --- Light Ion Engine Aluminum Leg Aluminum Leg Aluminum Leg Wheel Improved Heat Sink Small Laser Light Assault Rifle Peak State ------------ > --- POWER ------------ Light Nuclear Core > --- PROPULSION ------- Aluminum Leg Aluminum Leg > --- UTILITY ---------- Improved Heat Sink Small Storage Unit > --- WEAPON ----------- Assault Rifle Light Assault Rifle > --- INVENTORY -------- Light Ion Engine Light Treads Aluminum Leg Aluminum Leg Wheel Compact Wheel Particle Gun Light Assault Rifle [Rating: 11] Favorites ----------- Power Light Nuclear Core Engine Light Ion Engine Power Core Light Nuclear Core Propulsion Aluminum Leg Treads Light Treads Leg Aluminum Leg Utility Propulsion Shielding Device Improved Heat Sink Storage Medium Storage Unit Protection Propulsion Shielding Weapon Assault Rifle Energy Gun Particle Gun Ballistic Gun Assault Rifle Launcher Grenade Launcher Build | -11 -10 -10 ------- Run | Yrd Mat Min Slots Evolved . | . . . Power . | . . . Propulsion . | . . . Utility . | . . . Weapon . | . . . Parts Attached 19 | 7 8 4 Power 4 | 1 2 1 Engine 1 | 1 . . Core 3 | . 2 1 Reactor . | . . . Propulsion 4 | 3 1 . Treads 1 | 1 . . Leg 3 | 2 1 . Wheel . | . . . Hover . | . . . Flight . | . . . Utility 6 | 1 5 . Device 1 | . 1 . Storage 3 | 1 2 . Processor . | . . . Hackware . | . . . Protection 2 | . 2 . Artifact . | . . . Weapon 5 | 2 . 3 Energy Gun 1 | . . 1 Energy Cannon . | . . . Ballistic Gun 3 | 2 . 1 Ballistic Cannon . | . . . Launcher 1 | . . 1 Special Weapon . | . . . Impact Weapon . | . . . Slashing Weapon . | . . . Piercing Weapon . | . . . Special Melee Weapon . | . . . Unidentified Prototypes . | . . . Parts Lost 5 | . . 5 Power 1 | . . 1 Propulsion . | . . . Utility 1 | . . 1 Weapon 3 | . . 3 Highest Loss Streak 5 | . . 5 To Critical Strikes . | . . . Average Slot Usage (%) 97 | . 97 99 Engine 1 | . 1 . Core 12 | . 11 14 Leg 28 | . 28 28 Device 1 | . 1 . Storage 14 | . 14 14 Protection 10 | . 9 13 Ballistic Gun 27 | . 28 27 Naked Turns . | . . . Heaviest Build 29 | 11 29 19 Greatest Support 20 | 20 20 20 Greatest Overweight (x) 3 | 3 1 . Average Overweight (x) . | . . . Largest Inventory Capacity 15 | 8 15 10 Average Capacity 9 | 7 9 10 Most Carried 10 | 6 10 10 Average Carried 7 | 1 7 9 Final Capacity 10 | 8 10 10 Final Carried 10 | 6 10 8 Class Distribution -------------------- 100% | Mutant Dominant Class ---------------- Mutant | -10/Materials Mutant | -10/Mines Resources | -11 -10 -10 ----------- Run | Yrd Mat Min Matter Collected 376 | 79 248 49 Remotely . | . . . Salvage Created 536 | 50 464 22 Parts 38 | 1 34 3 Haulers Intercepted 2 | . 2 . Recyclers Shooed . | . . . Parts Field Recycled . | . . . Retrieved Matter . | . . . Parts Self-Destructed . | . . . Prevented . | . . . Kills | -11 -10 -10 ------- Run | Yrd Mat Min Combat Hostiles Destroyed 18 | . 10 8 Guns 11 | . 10 1 AOE 7 | . . 7 Classes Destroyed 6 | 1 3 2 Builder 1 | . . 1 Hauler 2 | . 2 . Recycler 1 | 1 . . Swarmer 3 | . 3 . Grunt 7 | . 7 . Assembled 8 | . . 8 Best Kill Streak 9 | 1 4 9 Combat Bots Only 8 | . 4 8 Max Kills in Single Turn 3 | 1 1 3 Gunslinging . | . . . Exploded 3 | . . 3 Melee . | . . . Uniques/NPCs Destroyed . | . . . Combat | -11 -10 -10 -------- Run | Yrd Mat Min Hostile Shots Fired 92 | . 37 55 Missed 32 | . 14 18 Damage Taken 945 | . 271 674 Core 250 | . 108 142 Absorbed by Shields . | . . . Redirected to Shielding 27 | . 11 16 Core Remaining (%) 100 | 100 . . Volleys Fired 59 | 6 46 7 Largest 2 | 2 2 2 Hottest 50 | 40 40 50 Shots Fired 115 | 12 92 11 Gun 111 | 12 92 7 Cannon . | . . . Launcher 4 | . . 4 Special . | . . . Kinetic 111 | 12 92 7 Thermal . | . . . Explosive 4 | . . 4 Electromagnetic . | . . . Robot Hit Streak 8 | 5 8 1 Robot Miss Streak 5 | 2 5 3 Penetration Max . | . . . Secondary Targets . | . . . Shots Hit Robots 56 | 8 45 3 Core Hits 44 | 2 24 18 Critical Kills 1 | . 1 . Critical Parts Destroyed 1 | 1 . . Critical Strikes 2 | 1 1 . Destroy 2 | 1 1 . Melee Attacks . | . . . Impact . | . . . Slashing . | . . . Piercing . | . . . Sneak Attacks . | . . . Combat Hostiles . | . . . Follow-up Attacks . | . . . Damage Inflicted 1084 | 88 471 525 Guns 578 | 86 471 21 Cannons . | . . . Explosions 504 | . . 504 Melee . | . . . Ramming 2 | 2 . . Kinetic 578 | 86 471 21 Thermal . | . . . Explosive 504 | . . 504 Electromagnetic . | . . . Impact . | . . . Slashing . | . . . Piercing . | . . . Highest Corruption 1 | . . 1 Average Corruption 1 | . . 1 Corruption Purged . | . . . Corruption Blocked . | . . . Overload Shots . | . . . Overflow Damage 2 | . . 2 Projectiles . | . . . Explosions 2 | . . 2 Melee . | . . . Knockbacks . | . . . Impact . | . . . Kinetic . | . . . Secondary . | . . . Self-Inflicted Damage . | . . . Shots . | . . . Rammed . | . . . Targets Rammed 1 | 1 . . Kicked 1 | 1 . . Crushed . | . . . Highest Temperature 17 | . 17 12 Average Temperature 6 | . 6 6 Received Heat Transfer 137 | . 117 20 Siege Activations . | . . . Robots Corrupted . | . . . Combat Hostiles . | . . . Parts Fried . | . . . Impact Corruptions . | . . . Robots Melted . | . . . Combat Hostiles . | . . . Parts Melted . | . . . Heat Transferred . | . . . Parts Sabotaged . | . . . Parts Stolen . | . . . Parts Stripped . | . . . Power Chain Reactions . | . . . Alert | -11 -10 -10 ------- Run | Yrd Mat Min Peak Influence 290 | 5 290 84 Initial 49 | . 3 49 Average 108 | 1 139 50 Maximum Alert Level 1 | . 1 . Low Security (%) 86 | 100 80 100 Level 1 13 | . 19 . Level 2 . | . . . Level 3 . | . . . Level 4 . | . . . Level 5 . | . . . High Security . | . . . Max Security . | . . . Squads Dispatched 2 | . 2 . Investigation 1 | . 1 . Extermination . | . . . Reinforcement 1 | . 1 . Assault . | . . . Garrison . | . . . Intercept . | . . . Searches Triggered . | . . . Construction Impeded . | . . . Haulers Reinforced . | . . . Active Scanning Responses . | . . . Cargo Convoy Interrupts . | . . . Stealth | -11 -10 -10 --------- Run | Yrd Mat Min Distress Signals 1 | . 1 . Communications Jammed . | . . . Distress Signals . | . . . Times Spotted 32 | . 14 18 Peak Tracking Total 19 | . 4 19 Tactical Retreats 1 | . 1 . Traps | -11 -10 -10 ------- Run | Yrd Mat Min Traps Triggered 1 | . 1 . Indirectly . | . . . Trap Hack Attempts . | . . . Triggered . | . . . Disarmed . | . . . Reprogrammed . | . . . Reused . | . . . Traps Extracted . | . . . Installed . | . . . Triggered . | . . . Machines | -11 -10 -10 ---------- Run | Yrd Mat Min Machines Disabled . | . . . Max in Single Turn . | . . . Machines Repaired . | . . . Machines Dismantled . | . . . Machines Sabotaged . | . . . Overloaded Fab Kills . | . . . Hacking | -11 -10 -10 --------- Run | Yrd Mat Min Machines Accessed . | . . . Terminals . | . . . Fabricators . | . . . Repair Stations . | . . . Recycling Units . | . . . Scanalyzers . | . . . Garrison Access . | . . . Total Hacks . | . . . Successful . | . . . Failed . | . . . Catastrophic . | . . . Database Lockouts . | . . . Manual . | . . . Terminals . | . . . Fabricators . | . . . Repair Stations . | . . . Recycling Units . | . . . Scanalyzers . | . . . Garrison Access . | . . . Terminal Hacks . | . . . Fabricator Hacks . | . . . Repair Station Hacks . | . . . Recycling Unit Hacks . | . . . Scanalyzer . | . . . Garrison Access Hacks . | . . . Unauthorized Hacks . | . . . Terminals . | . . . Fabricators . | . . . Repair Stations . | . . . Recycling Units . | . . . Scanalyzers . | . . . Garrison Access . | . . . Data Cores Recovered . | . . . Used . | . . . Hacking Detections . | . . . Full Trace Events . | . . . Feedback Events . | . . . Feedback Blocked . | . . . Robot Schematics Acquired . | . . . Robots Built . | . . . Authchips . | . . . Time . | . . . Total Robot Build Rating . | . . . Part Schematics Acquired . | . . . Parts Built . | . . . Authchips . | . . . Time . | . . . Total Part Build Rating . | . . . Parts Repaired . | . . . Time . | . . . Parts Recycled . | . . . Recycled Matter . | . . . Retrieved Matter . | . . . Retrieved Components . | . . . Parts Scanalyzed . | . . . Part Schematics Acquired . | . . . Parts Damaged . | . . . Bothacking | -11 -10 -10 ------------ Run | Yrd Mat Min Used RIF Installer . | . . . Robots Hacked . | . . . Non-combat . | . . . Combat . | . . . Robot Hacks Applied . | . . . Relay Couplers Released . | . . . Fabnet Peak Effective % . | . . . Robots Rewired . | . . . Allies Hacked . | . . . Hacks Repelled . | . . . Allies | -11 -10 -10 -------- Run | Yrd Mat Min Total Allies . | . . . Largest Group . | . . . Highest-Rated Group . | . . . Highest-Rated Ally . | . . . Total Orders . | . . . Ally Attacks . | . . . Total Damage . | . . . Kills . | . . . Allies Corrupted . | . . . Allies Melted . | . . . Intel | -11 -10 -10 ------- Run | Yrd Mat Min Robot Analysis Total . | . . . Derelict Logs Recovered 1 | . . 1 Drone Launches . | . . . Drone Recoveries . | . . . Exploration | -11 -10 -10 ------------- Run | Yrd Mat Min Turns Passed 1007 | 120 717 170 Spaces Moved 638 | 62 453 123 Core 24 | 24 . . Treads 2 | 2 . . Legs 612 | 36 453 123 Wheels . | . . . Hover . | . . . Flight . | . . . Fastest Speed 50 | 50 120 120 Average Speed 121 | 136 120 120 Slowest Speed 200 | 200 190 120 Overloaded Moves . | . . . Propulsion Burnouts . | . . . Robots Hopped . | . . . Cave-ins Triggered . | . . . Exploration Rate (%) 44 | 5 82 46 Regions Visited 2 Branch Regions 1 Pre-discovered Areas 1 | . . 1 Known Exits Taken . | . . . Unknown Exits Taken 2 | 1 1 . Scrap Searched 1 | . . 1 Spaces Dug . | . . . Terrain Destroyed 16 | . . 16 Melee . | . . . Projectile . | . . . AOE 16 | . . 16 Terrain Rammed . | . . . Walls Destroyed . | . . . Machines Disabled . | . . . Actions | -11 -10 -10 --------- Run | Yrd Mat Min Total 761 | 82 545 134 Wait 23 | . 23 . Move 636 | 61 452 123 Hop . | . . . Pick Up 12 | 6 6 . Fast Attach 13 | 7 5 1 Attach 2 | . . 2 Detach 1 | . 1 . Swap 4 | . 3 1 Drop 10 | 1 9 . Fire 59 | 6 46 7 Melee . | . . . Ram . | . . . Kick 1 | 1 . . Crush . | . . . Escape Stasis . | . . . Rewire . | . . . Trap . | . . . Miscellaneous . | . . . Route ------- -11/Scrapyard -10/Materials (discovered 3 exits: [*Mat] / [*Min x2]) -10/Mines (discovered 1 exit: [*Mat]) History --------- Turn | Location | Event 39 | -11/Scrapyard | Discovered new exit (range 15) 121 | -11/Scrapyard | Entered Materials 314 | -10/Materials | Build established: Mutant 493 | -10/Materials | Discovered new exit (range 4) 644 | -10/Materials | Discovered new exit (range 10) 741 | -10/Materials | Discovered new exit (range 11) 838 | -10/Materials | Entered Mines 838 | -10/Mines | Discovered new exit (range 8) 856 | -10/Mines | Learned location of Zion (-6) 982 | -10/Mines | Assembled infested the area 987 | -10/Mines | Assisted by a Guerilla fighting off Assembled 995 | -10/Mines | Core integrity fell below 50% 1007 | -10/Mines | Core integrity fell below 20% 1008 | -10/Mines | Destroyed by as-76366 with Assembled Heavy Rifle Last Messages --------------- as-68301 destroyed. YI-UF0: "BOOSH!" YI-UF0: "KAPOW!" YI-UF0: "Whaaaaaaaa!" U-05 Engineer lays Concrete. S1-G5T(h) destroyed. U-05 Engineer lays Concrete. as-90390 destroyed. as-23402 destroyed. U-05 Engineer destroyed. Destroyed Asb. Hover Unit. as-35148 destroyed. YI-UF0: "BWOOM!" Grenade Launcher destroyed. Propulsion Shielding destroyed. System corrupted by crushing effect (+1). Lgt. Nuclear Core destroyed. Assault Rifle destroyed. Lgt. Assault Rifle destroyed. Acquired Fission Core. Map ----- +----------------------------------------------------+ | ?????????????????????????????????????????????????? | | ?????????????????????????????????????????????????? | | ?????????????????????????????????????????????????? | | ?????????????????????????????????????????????????? | | ?????????????????????????????????????????????????? | | ?????????????????????????????????????????????????? | | ?????????????????????????????????????????????????? | | ?????????????????????????????????????????????????? | | ?????????????????????????????????????????????????? | | ?????????????????????????????????????????????????? | | ???????????????????????? ?????????????????????? | | ?????????????????????### #???????????????????? | | ????????????????????# #???????????????????? | | ???????????????? ## ##??????????????????? | | ?????????????? # % ;#??????????????????? | | ????????????? aaa ???????????????????? | | ????????????? ! % ???????????????????? | | ????????????? %! ????????????????????? | | ??????????????# aa ????????????????????? | | ???????????????# #????????????????????? | | ????????????????# #????????????????????? | | ??????????? ##### g ##???????????????????? | | ?????????? #???????????????????? | | ???????????? #???????????????????? | | ???????????????# ]aa ##???????????????????? | | ????????????????# =%@ #???????????????????? | | ????????????????# #???????????????????? | | ##??????????????## ##???#??######??????? | | ##??????????????## ##? #? ??????? | | #???????????????# ## # """????????? | | #??????????? """????????? | | ##???????????###### """????????? | | ##????????????????### ### ### ???? | | ##?????????????????#####?## ##??? """ """????? | | ##???????????????????????##r#??????"""????????? | | #?????????????############r#?????????????????? | | #?????????????# #?????????????????? | | ##????????????# ####### ####?????????????????? | | ##???????????# #?????# #????????????????????? | | ##??????????# #?????# #????????????????????? | | ##?????????# #?????# #????????????????????? | | #?????????# #?????# #????????????????????? | | #######?????????# #?????# #????????????????????? | | #???????????????# #?????# #????????????????????? | | #???????????????# #?????# #????????????????????? | | #??????????###### #?????? ?????????????????????? | | #??????????# #??????#?????????????????????? | | #??????????# ######????????????????????????????? | | #########??# #????????#????????????????????????? | | #??# ### #????????????????????????? | +----------------------------------------------------+ Best States ------------- Heat Dissipation 39 Energy Generation 14 Energy Capacity 160 Matter Stores 139 Matter Capacity 300 Sight Range 16 Terrain Scan Density 10 Propulsion Shielding 33 Evasion (%) 55 Item Schematics ----------------- None Robot Schematics ------------------ None Fabricated ------------ Nothing Alien Tech Used ----------------- None Achievements -------------- None Challenges ------------ None Game ------ Seed ControlBombardmentMaul Manual? 0 Play Time 00:07:59 Cumulative 18.8 hours Start 2024.04.27 @ 22:56:03 End 2024.04.27 @ 23:02:41 Sessions 1 Manual Loads 0 Difficulty Rogue Special Mode None Game No. 26 Rogue 23 Adventurer 0 Explorer 3 Win Type - Total 0 Types 0/0/0/0/0/0/0/0/0 Lore% 15 Gallery% 26 Achievement% 21 Wizard Run 0 Options --------- Layout 1 ASCII 0 Keyboard 0 Movement Arrows Keybinds 0 Fullscreen 0 Font 28/ProggyBold Map View 50x43 Zoom Use 0% Tactical HUD 0 Map Filters NONE Filters NONE Steam 1 RUN: 0db3e675-f17b-47d2-bae0-bdbd68651f8c